[Event "Reykjavik Open 2025"]
[Site "Reykjavik"]
[Date "2025.04.12"]
[Round "5.37"]
[White "Wartiovaara, Oliver"]
[Black "Harms, Reece"]
[Result "1-0"]
[Annotator "ChessBase"]
[ECO "E28"]
[WhiteElo "2359"]
[BlackElo "1825"]
[PlyCount "33"]
[EventDate "2025.04.09"]
[EventType "swiss"]
[EventCountry "ISL"]
[SourceTitle "playchess.com"]
[Source "ChessBase"]
[SourceQuality "1"]
[TimeControl "40/5400+30:1800+30"]

1. d4 {[%emt 0:00:01]} Nf6 {[%emt 0:00:12]} 2. c4 {[%emt 0:00:04]} e6 {[%emt 0:00:08]} 3. Nc3 {[%emt 0:00:03]} Bb4 {[%emt 0:00:12]} 4. e3 {[%emt 0:00:04]} O-O {[%emt 0:02:28]} 5. a3 {[%emt 0:00:02]} Bxc3+ {[%emt 0:00:49]} 6. bxc3 {[%emt 0:00:05]} b6 {[%emt 0:02:18]} 7. Bd3 {[%emt 0:00:20]} Nc6 {[%emt 0:01:58]} 8. e4 {[%emt 0:01:30]} Ne8 {[%emt 0:00:45]} 9. Nf3 {[%emt 0:01:28]} Ba6 {[%emt 0:01:48]} 10. e5 {[%emt 0:01:59]} h6 {[%emt 0:08:43]} 11. g4 {[%emt 0:05:04]} Na5 {[%emt 0:07:48]} 12. g5 {[%emt 0:01:48]} Bxc4 {[%emt 0:20:58]} 13. gxh6 {[%emt 0:00:47]} g6 {[%emt 0:09:47]} 14. Bg5 {[%emt 0:01:23]} Qc8 {[%emt 0:00:30]} 15. Be7 {[%emt 0:00:47]} Qa6 {[%emt 0:02:46]} 16. Bc2 {[%emt 0:02:17]} Nf6 {[%emt 0:03:56]} 17. Bxf6 {[%emt 0:00:20]} 1-0

[Event "Reykjavik Open 2025"]
[Site "Reykjavik"]
[Date "2025.04.12"]
[Round "5.38"]
[White "Friedel, Joshua"]
[Black "Savidge, Daniel"]
[Result "1-0"]
[Annotator "ChessBase"]
[ECO "B30"]
[WhiteElo "2552"]
[BlackElo "2180"]
[PlyCount "85"]
[EventDate "2025.04.09"]
[EventType "swiss"]
[EventCountry "ISL"]
[SourceTitle "playchess.com"]
[Source "ChessBase"]
[SourceQuality "1"]
[TimeControl "40/5400+30:1800+30"]

1. e4 {[%emt 0:00:03]} c5 {[%emt 0:00:22]} 2. Nf3 {[%emt 0:00:14]} Nc6 {[%emt 0:00:06]} 3. Nc3 {[%emt 0:00:22]} e5 {[%emt 0:01:05]} 4. Bc4 {[%emt 0:00:07]} Be7 {[%emt 0:02:39]} 5. d3 {[%emt 0:01:00]} d6 {[%emt 0:00:36]} 6. O-O {[%emt 0:01:07]} Nf6 {[%emt 0:02:37]} 7. Ng5 {[%emt 0:00:36]} O-O {[%emt 0:01:41]} 8. f4 {[%emt 0:00:05]} Nd4 {[%emt 0:04:58]} 9. fxe5 {[%emt 0:16:32]} dxe5 {[%emt 0:01:53]} 10. Rxf6 {[%emt 0:01:22]} Bxf6 {[%emt 0:20:17]} 11. Qh5 {[%emt 0:00:34]} Bxg5 {[%emt 0:12:17]} 12. Bxg5 {[%emt 0:00:12]} Qd7 {[%emt 0:07:04]} 13. Rf1 {[%emt 0:25:33]} Qg4 {[%emt 0:04:14]} 14. Bxf7+ {[%emt 0:05:47]} Kh8 {[%emt 0:01:36]} 15. Qxg4 {[%emt 0:02:48]} Bxg4 {[%emt 0:00:03]} 16. Be7 {[%emt 0:01:25]} Nxc2 {[%emt 0:16:30]} 17. Bxc5 {[%emt 0:06:43]} Rfd8 {[%emt 0:06:35]} 18. h3 {[%emt 0:04:00]} Rac8 {[%emt 0:01:42]} 19. Be7 {[%emt 0:07:53]} Rd7 {[%emt 0:02:17]} 20. Bg5 {[%emt 0:02:08]} Rf8 {[%emt 0:01:15]} 21. Bb3 {[%emt 0:00:28]} Rxf1+ {[%emt 0:00:31]} 22. Kxf1 {[%emt 0:00:06]} Nd4 {[%emt 0:00:42]} 23. hxg4 {[%emt 0:00:15]} Nxb3 {[%emt 0:00:03]} 24. axb3 {[%emt 0:00:05]} Rxd3 {[%emt 0:00:07]} 25. Kf2 {[%emt 0:00:11]} Kg8 {[%emt 0:00:13]} 26. Be3 {[%emt 0:00:28]} Rd7 {[%emt 0:01:42]} 27. Nd5 {[%emt 0:01:25]} b6 {[%emt 0:00:15]} 28. Bd2 {[%emt 0:01:40]} Kf7 {[%emt 0:00:09]} 29. Bc3 {[%emt 0:00:33]} Ke6 {[%emt 0:00:13]} 30. Ke2 {[%emt 0:01:21]} Rd8 {[%emt 0:00:11]} 31. Nb4 {[%emt 0:01:05]} Rc8 {[%emt 0:01:16]} 32. Nd3 {[%emt 0:00:18]} a5 {[%emt 0:00:32]} 33. Kd2 {[%emt 0:02:37]} Rd8 {[%emt 0:00:27]} 34. Bxe5 {[%emt 0:04:48]} Rxd3+ {[%emt 0:01:18]} 35. Kxd3 {[%emt 0:00:04]} Kxe5 {[%emt 0:00:03]} 36. g3 {[%emt 0:00:24]} b5 {[%emt 0:02:07]} 37. Ke3 {[%emt 0:01:15]} h6 {[%emt 0:00:09]} 38. Kd3 {[%emt 0:00:05]} g6 {[%emt 0:01:14]} 39. Ke3 {[%emt 0:00:05]} a4 {[%emt 0:01:17]} 40. b4 {[%emt 0:00:59]} h5 {[%emt 0:00:48]} 41. g5 {[%emt 0:34:31]} Kd6 {[%emt 0:32:16]} 42. Kd4 {[%emt 0:00:07]} Ke6 {[%emt 0:00:03]} 43. e5 {[%emt 0:00:14]} 1-0

[Event "Reykjavik Open 2025"]
[Site "Reykjavik"]
[Date "2025.04.12"]
[Round "5.39"]
[White "Vroombout, Enrico"]
[Black "Stefansson, Vignir Vatnar"]
[Result "0-1"]
[Annotator "ChessBase"]
[ECO "B69"]
[WhiteElo "2161"]
[BlackElo "2536"]
[PlyCount "78"]
[EventDate "2025.04.09"]
[EventType "swiss"]
[EventCountry "ISL"]
[SourceTitle "playchess.com"]
[Source "ChessBase"]
[SourceQuality "1"]
[TimeControl "40/5400+30:1800+30"]

1. e4 {[%emt 0:00:03]} c5 {[%emt 0:00:59]} 2. Nf3 {[%emt 0:00:04]} Nf6 {[%emt 0:00:27]} 3. Nc3 {[%emt 0:01:16]} Nc6 {[%emt 0:02:36]} 4. d4 {[%emt 0:00:51]} cxd4 {[%emt 0:00:07]} 5. Nxd4 {[%emt 0:00:03]} d6 {[%emt 0:00:31]} 6. Bg5 {[%emt 0:00:26]} e6 {[%emt 0:00:28]} 7. Qd2 {[%emt 0:00:09]} a6 {[%emt 0:00:16]} 8. O-O-O {[%emt 0:03:06]} Bd7 {[%emt 0:00:42]} 9. f4 {[%emt 0:17:40]} Be7 {[%emt 0:02:11]} 10. Nf3 {[%emt 0:05:16]} b5 {[%emt 0:01:06]} 11. Bxf6 {[%emt 0:09:02]} gxf6 {[%emt 0:05:01]} 12. f5 {[%emt 0:02:15]} Qb6 {[%emt 0:00:49]} 13. g3 {[%emt 0:10:21]} O-O-O {[%emt 0:02:20]} 14. Bh3 {[%emt 0:00:47]} Kb8 {[%emt 0:01:46]} 15. fxe6 {[%emt 0:04:53]} fxe6 {[%emt 0:00:45]} 16. Ne2 {[%emt 0:03:58]} Qc5 {[%emt 0:29:24]} 17. Nf4 {[%emt 0:10:04]} Qc4 {[%emt 0:03:22]} 18. b3 {[%emt 0:01:02]} Qxe4 {[%emt 0:00:40]} 19. Rde1 {[%emt 0:01:05]} Qb4 {[%emt 0:01:06]} 20. Qxb4 {[%emt 0:01:30]} Nxb4 {[%emt 0:00:07]} 21. a3 {[%emt 0:04:42]} e5 {[%emt 0:03:40]} 22. Bxd7 {[%emt 0:04:55]} Rxd7 {[%emt 0:00:34]} 23. axb4 {[%emt 0:00:13]} exf4 {[%emt 0:00:05]} 24. Nd4 {[%emt 0:00:08]} Rc8 {[%emt 0:00:49]} 25. Nf5 {[%emt 0:03:17]} Bf8 {[%emt 0:01:24]} 26. Rhf1 {[%emt 0:07:26]} fxg3 {[%emt 0:00:38]} 27. hxg3 {[%emt 0:00:04]} d5 {[%emt 0:02:44]} 28. Rf4 {[%emt 0:05:17]} Kb7 {[%emt 0:04:42]} 29. Re6 {[%emt 0:02:03]} Rc6 {[%emt 0:00:00]} 30. Rxc6 {[%emt 0:00:28]} Kxc6 {[%emt 0:00:00]} 31. c3 {[%emt 0:00:52]} Rf7 {[%emt 0:01:58]} 32. Kc2 {[%emt 0:00:35]} Bd6 {[%emt 0:00:12]} 33. Rg4 {[%emt 0:00:47]} Be5 {[%emt 0:01:07]} 34. Rg8 {[%emt 0:00:33]} Kb7 {[%emt 0:03:04]} 35. Rd8 {[%emt 0:00:59]} Rc7 {[%emt 0:01:00]} 36. Rxd5 {[%emt 0:00:14]} Rxc3+ {[%emt 0:00:06]} 37. Kd2 {[%emt 0:00:10]} Rxb3 {[%emt 0:00:15]} 38. Rd7+ {[%emt 0:00:14]} Kc6 {[%emt 0:00:22]} 39. Ra7 {[%emt 0:00:23]} Kb6 {[%emt 0:00:30]} 0-1

[Event "Reykjavik Open 2025"]
[Site "Reykjavik"]
[Date "2025.04.12"]
[Round "5.40"]
[White "Agbabishvili, Lali"]
[Black "Cornette, Matthieu"]
[Result "0-1"]
[Annotator "ChessBase"]
[ECO "A11"]
[WhiteElo "2119"]
[BlackElo "2528"]
[PlyCount "90"]
[EventDate "2025.04.09"]
[EventType "swiss"]
[EventCountry "ISL"]
[SourceTitle "playchess.com"]
[Source "ChessBase"]
[SourceQuality "1"]
[TimeControl "40/5400+30:1800+30"]

1. g3 {[%emt 0:00:21]} e5 {[%emt 0:00:23]} 2. c4 {[%emt 0:00:11]} c6 {[%emt 0:00:30]} 3. Bg2 {[%emt 0:02:51]} d5 {[%emt 0:00:27]} 4. cxd5 {[%emt 0:04:03]} cxd5 {[%emt 0:00:09]} 5. Nf3 {[%emt 0:00:13]} Nc6 {[%emt 0:01:32]} 6. d3 {[%emt 0:04:34]} Nf6 {[%emt 0:06:20]} 7. O-O {[%emt 0:00:15]} h6 {[%emt 0:03:39]} 8. h3 {[%emt 0:11:47]} Be6 {[%emt 0:04:07]} 9. Nc3 {[%emt 0:02:09]} d4 {[%emt 0:01:50]} 10. Ne4 {[%emt 0:01:16]} Nxe4 {[%emt 0:03:51]} 11. dxe4 {[%emt 0:00:27]} Qd7 {[%emt 0:00:13]} 12. Kh2 {[%emt 0:00:11]} Bd6 {[%emt 0:02:37]} 13. Ne1 {[%emt 0:06:04]} O-O {[%emt 0:02:55]} 14. Nd3 {[%emt 0:02:09]} Rac8 {[%emt 0:07:12]} 15. Bd2 {[%emt 0:00:33]} b6 {[%emt 0:04:48]} 16. a3 {[%emt 0:07:47]} a5 {[%emt 0:09:32]} 17. Rc1 {[%emt 0:04:39]} Nb8 {[%emt 0:06:10]} 18. f4 {[%emt 0:05:04]} exf4 {[%emt 0:02:31]} 19. Bxf4 {[%emt 0:03:45]} Rxc1 {[%emt 0:12:53]} 20. Qxc1 {[%emt 0:01:12]} Rc8 {[%emt 0:00:09]} 21. Qd2 {[%emt 0:01:58]} Nc6 {[%emt 0:00:09]} 22. e5 {[%emt 0:09:43]} Bf8 {[%emt 0:01:08]} 23. g4 {[%emt 0:00:10]} Ne7 {[%emt 0:02:43]} 24. Rc1 {[%emt 0:00:17]} Nd5 {[%emt 0:05:09]} 25. g5 {[%emt 0:11:06]} Rxc1 {[%emt 0:02:48]} 26. Qxc1 {[%emt 0:00:14]} Nxf4 {[%emt 0:04:03]} 27. Qxf4 {[%emt 0:00:09]} hxg5 {[%emt 0:01:33]} 28. Qxg5 {[%emt 0:00:10]} Bf5 {[%emt 0:00:32]} 29. Nf4 {[%emt 0:02:10]} Be7 {[%emt 0:01:19]} 30. Qg3 {[%emt 0:00:09]} Qd8 {[%emt 0:02:40]} 31. Nd5 {[%emt 0:05:22]} Be6 {[%emt 0:00:25]} 32. Nxe7+ {[%emt 0:02:56]} Qxe7 {[%emt 0:00:02]} 33. Qf4 {[%emt 0:00:46]} Qc5 {[%emt 0:00:18]} 34. Bf3 {[%emt 0:02:18]} d3 {[%emt 0:01:52]} 35. Qd2 {[%emt 0:07:53]} Qf2+ {[%emt 0:02:08]} 36. Kh1 {[%emt 0:00:00]} Qf1+ {[%emt 0:04:15]} 37. Kh2 {[%emt 0:00:00]} Qf2+ {[%emt 0:02:24]} 38. Kh1 {[%emt 0:00:00]} Qf1+ {[%emt 0:01:39]} 39. Kh2 {[%emt 0:00:00]} Qxh3+ {[%emt 0:00:05]} 40. Kg1 {[%emt 0:00:00]} Qg3+ {[%emt 0:00:00]} 41. Kh1 {[%emt 0:29:03]} Bf5 {[%emt 0:31:10]} 42. Bg2 {[%emt 0:02:31]} Qf2 {[%emt 0:00:00]} 43. Bf3 {[%emt 0:00:00]} Be4 {[%emt 0:00:00]} 44. Bxe4 {[%emt 0:00:00]} Qf1+ {[%emt 0:00:00]} 45. Kh2 {[%emt 0:00:00]} Qxe2+ {[%emt 0:00:00]} 0-1

[Event "Reykjavik Open 2025"]
[Site "Reykjavik"]
[Date "2025.04.12"]
[Round "5.41"]
[White "Kunin, Vitaly"]
[Black "Joel Paul Ganta"]
[Result "1-0"]
[Annotator "ChessBase"]
[ECO "D95"]
[WhiteElo "2522"]
[BlackElo "2170"]
[PlyCount "119"]
[EventDate "2025.04.09"]
[EventType "swiss"]
[EventCountry "ISL"]
[SourceTitle "playchess.com"]
[Source "ChessBase"]
[SourceQuality "1"]
[TimeControl "40/5400+30:1800+30"]

1. d4 {[%emt 0:00:08]} Nf6 {[%emt 0:00:17]} 2. c4 {[%emt 0:00:13]} g6 {[%emt 0:00:03]} 3. Nc3 {[%emt 0:00:10]} d5 {[%emt 0:00:06]} 4. e3 {[%emt 0:02:31]} Bg7 {[%emt 0:00:10]} 5. Qb3 {[%emt 0:00:14]} dxc4 {[%emt 0:18:33]} 6. Bxc4 {[%emt 0:01:30]} O-O {[%emt 0:00:03]} 7. Nf3 {[%emt 0:01:17]} Nc6 {[%emt 0:00:02]} 8. Ne5 {[%emt 0:07:49]} Qe8 {[%emt 0:09:27]} 9. Nxc6 {[%emt 0:19:59]} Qxc6 {[%emt 0:03:33]} 10. O-O {[%emt 0:00:28]} a6 {[%emt 0:01:25]} 11. Bd2 {[%emt 0:03:28]} Qd6 {[%emt 0:02:37]} 12. Be2 {[%emt 0:10:32]} Be6 {[%emt 0:20:35]} 13. Qc2 {[%emt 0:00:16]} c5 {[%emt 0:00:04]} 14. dxc5 {[%emt 0:00:48]} Qxc5 {[%emt 0:00:03]} 15. e4 {[%emt 0:00:59]} Rac8 {[%emt 0:00:08]} 16. Rac1 {[%emt 0:03:30]} Rfd8 {[%emt 0:02:53]} 17. Be3 {[%emt 0:04:17]} Qc7 {[%emt 0:04:05]} 18. Qb1 {[%emt 0:08:14]} Qa5 {[%emt 0:06:39]} 19. h3 {[%emt 0:03:58]} b5 {[%emt 0:01:23]} 20. a3 {[%emt 0:06:59]} Nd7 {[%emt 0:04:29]} 21. Nd5 {[%emt 0:03:37]} Bxd5 {[%emt 0:00:02]} 22. exd5 {[%emt 0:01:00]} Rxc1 {[%emt 0:01:09]} 23. Rxc1 {[%emt 0:00:13]} Nf6 {[%emt 0:00:17]} 24. Bf3 {[%emt 0:01:10]} Nxd5 {[%emt 0:00:39]} 25. b4 {[%emt 0:02:10]} Qxa3 {[%emt 0:08:31]} 26. Bxd5 {[%emt 0:00:11]} e6 {[%emt 0:02:27]} 27. Bb7 {[%emt 0:05:39]} Bd4 {[%emt 0:04:45]} 28. Rd1 {[%emt 0:02:07]} e5 {[%emt 0:00:46]} 29. Rd3 {[%emt 0:01:56]} Qa4 {[%emt 0:00:21]} 30. Bxd4 {[%emt 0:04:07]} Rxd4 {[%emt 0:01:39]} 31. Rxd4 {[%emt 0:00:10]} exd4 {[%emt 0:00:04]} 32. Be4 {[%emt 0:02:34]} Kg7 {[%emt 0:01:01]} 33. g3 {[%emt 0:01:41]} Qa3 {[%emt 0:00:51]} 34. Kg2 {[%emt 0:01:00]} h5 {[%emt 0:00:11]} 35. h4 {[%emt 0:00:20]} Qc3 {[%emt 0:02:28]} 36. Bd3 {[%emt 0:00:20]} Qc6+ {[%emt 0:00:20]} 37. Be4 {[%emt 0:00:16]} Qc3 {[%emt 0:00:04]} 38. Kf1 {[%emt 0:00:32]} Qd2 {[%emt 0:02:13]} 39. Qe1 {[%emt 0:01:33]} Qb2 {[%emt 0:00:15]} 40. Bd3 {[%emt 0:00:24]} Kf6 {[%emt 0:00:29]} 41. Qe4 {[%emt 0:32:09]} Qc1+ {[%emt 0:34:44]} 42. Kg2 {[%emt 0:00:00]} Qc3 {[%emt 0:00:00]} 43. f4 {[%emt 0:00:00]} Kg7 {[%emt 0:00:00]} 44. f5 {[%emt 0:00:00]} gxf5 {[%emt 0:00:00]} 45. Qe5+ {[%emt 0:00:00]} Kg8 {[%emt 0:00:00]} 46. Qb8+ {[%emt 0:00:00]} Kg7 {[%emt 0:00:00]} 47. Qe5+ {[%emt 0:00:00]} Kg8 {[%emt 0:00:00]} 48. Qxf5 {[%emt 0:00:00]} Qxb4 {[%emt 0:00:00]} 49. Qh7+ {[%emt 0:00:00]} Kf8 {[%emt 0:00:00]} 50. Qh8+ {[%emt 0:00:00]} Ke7 {[%emt 0:00:00]} 51. Qxh5 {[%emt 0:00:00]} Kd6 {[%emt 0:00:00]} 52. Qf5 {[%emt 0:00:00]} Qd2+ {[%emt 0:00:00]} 53. Kh3 {[%emt 0:00:00]} Qd1 {[%emt 0:00:00]} 54. Qf6+ {[%emt 0:00:00]} Kd5 {[%emt 0:00:00]} 55. Qxf7+ {[%emt 0:00:00]} Kc5 {[%emt 0:00:00]} 56. Qe7+ {[%emt 0:00:00]} Kb6 {[%emt 0:00:00]} 57. Qd6+ {[%emt 0:00:00]} Ka5 {[%emt 0:00:00]} 58. Qd8+ {[%emt 0:00:00]} Ka4 {[%emt 0:00:00]} 59. Qxd4+ {[%emt 0:00:00]} Ka3 {[%emt 0:00:00]} 60. Qc3+ {[%emt 0:00:00]} 1-0

[Event "Reykjavik Open 2025"]
[Site "Reykjavik"]
[Date "2025.04.12"]
[Round "5.42"]
[White "Fartmann, Oliver"]
[Black "Bailet, Pierre"]
[Result "1/2-1/2"]
[Annotator "ChessBase"]
[ECO "B12"]
[WhiteElo "2109"]
[BlackElo "2495"]
[PlyCount "107"]
[EventDate "2025.04.09"]
[EventType "swiss"]
[EventCountry "ISL"]
[SourceTitle "playchess.com"]
[Source "ChessBase"]
[SourceQuality "1"]
[TimeControl "40/5400+30:1800+30"]

1. e4 {[%emt 0:00:05]} c6 {[%emt 0:01:13]} 2. d4 {[%emt 0:00:08]} d5 {[%emt 0:00:19]} 3. f3 {[%emt 0:00:09]} e6 {[%emt 0:01:32]} 4. Bd3 {[%emt 0:00:09]} c5 {[%emt 0:01:30]} 5. c3 {[%emt 0:00:22]} Nc6 {[%emt 0:01:37]} 6. Ne2 {[%emt 0:01:35]} cxd4 {[%emt 0:08:58]} 7. cxd4 {[%emt 0:00:10]} Bb4+ {[%emt 0:01:00]} 8. Nbc3 {[%emt 0:02:48]} Nge7 {[%emt 0:00:11]} 9. Be3 {[%emt 0:14:38]} e5 {[%emt 0:04:51]} 10. O-O {[%emt 0:10:33]} exd4 {[%emt 0:10:11]} 11. Nxd4 {[%emt 0:03:13]} Bc5 {[%emt 0:01:54]} 12. Bb5 {[%emt 0:05:05]} O-O {[%emt 0:04:58]} 13. Kh1 {[%emt 0:06:05]} Bb6 {[%emt 0:04:24]} 14. Bxc6 {[%emt 0:17:11]} bxc6 {[%emt 0:00:51]} 15. Na4 {[%emt 0:03:53]} Bc7 {[%emt 0:06:42]} 16. Rc1 {[%emt 0:02:36]} Qd6 {[%emt 0:04:41]} 17. Bg1 {[%emt 0:01:10]} dxe4 {[%emt 0:06:11]} 18. Nxc6 {[%emt 0:01:22]} Nxc6 {[%emt 0:07:38]} 19. Qxd6 {[%emt 0:00:07]} Bxd6 {[%emt 0:00:04]} 20. Rxc6 {[%emt 0:00:11]} Bb4 {[%emt 0:00:43]} 21. Bc5 {[%emt 0:13:40]} Bd7 {[%emt 0:05:45]} 22. Rc7 {[%emt 0:01:34]} Bxa4 {[%emt 0:06:45]} 23. Bxb4 {[%emt 0:00:04]} Rfb8 {[%emt 0:00:42]} 24. Bc3 {[%emt 0:00:55]} e3 {[%emt 0:02:20]} 25. Re1 {[%emt 0:01:18]} Re8 {[%emt 0:00:15]} 26. Bd4 {[%emt 0:03:12]} e2 {[%emt 0:02:09]} 27. Rxa7 {[%emt 0:01:25]} Rxa7 {[%emt 0:01:23]} 28. Bxa7 {[%emt 0:00:03]} Bd1 {[%emt 0:00:05]} 29. Bd4 {[%emt 0:01:24]} f6 {[%emt 0:00:34]} 30. Kg1 {[%emt 0:00:36]} Kf7 {[%emt 0:00:05]} 31. Kf2 {[%emt 0:00:55]} Ke6 {[%emt 0:00:12]} 32. h4 {[%emt 0:01:25]} h5 {[%emt 0:01:33]} 33. Bc3 {[%emt 0:02:49]} Ra8 {[%emt 0:01:45]} 34. a3 {[%emt 0:00:15]} Kd5 {[%emt 0:00:58]} 35. Rg1 {[%emt 0:01:05]} Ra4 {[%emt 0:02:03]} 36. g3 {[%emt 0:01:57]} Rc4 {[%emt 0:00:34]} 37. Ke3 {[%emt 0:01:21]} Rc6 {[%emt 0:01:25]} 38. Kf2 {[%emt 0:00:21]} Rc4 {[%emt 0:02:32]} 39. Rg2 {[%emt 0:00:27]} Ke6 {[%emt 0:00:51]} 40. g4 {[%emt 0:01:29]} hxg4 {[%emt 0:00:56]} 41. Rxg4 {[%emt 0:31:49]} e1=Q+ {[%emt 0:30:44]} 42. Kxe1 {[%emt 0:00:00]} Rxg4 {[%emt 0:00:00]} 43. fxg4 {[%emt 0:00:00]} Bxg4 {[%emt 0:00:00]} 44. Kd2 {[%emt 0:00:00]} g5 {[%emt 0:00:00]} 45. Bxf6 {[%emt 0:00:00]} gxh4 {[%emt 0:00:00]} 46. Bxh4 {[%emt 0:00:00]} Kd5 {[%emt 0:00:00]} 47. Kc3 {[%emt 0:00:00]} Kc6 {[%emt 0:00:00]} 48. Kb4 {[%emt 0:00:00]} Kb7 {[%emt 0:00:00]} 49. Kc5 {[%emt 0:00:00]} Be2 {[%emt 0:00:00]} 50. b4 {[%emt 0:00:00]} Bd3 {[%emt 0:00:00]} 51. a4 {[%emt 0:00:00]} Bc2 {[%emt 0:00:00]} 52. a5 {[%emt 0:00:00]} Bd3 {[%emt 0:00:00]} 53. b5 {[%emt 0:00:00]} Bxb5 {[%emt 0:00:00]} 54. Kxb5 {[%emt 0:00:00]} 1/2-1/2

[Event "Reykjavik Open 2025"]
[Site "Reykjavik"]
[Date "2025.04.12"]
[Round "5.43"]
[White "Kunz, Andre"]
[Black "Gunnarsson, Jon Viktor"]
[Result "1/2-1/2"]
[Annotator "ChessBase"]
[ECO "B06"]
[WhiteElo "2115"]
[BlackElo "2439"]
[PlyCount "46"]
[EventDate "2025.04.09"]
[EventType "swiss"]
[EventCountry "ISL"]
[SourceTitle "playchess.com"]
[Source "ChessBase"]
[SourceQuality "1"]
[TimeControl "40/5400+30:1800+30"]

1. e4 {[%emt 0:00:03]} c5 {[%emt 0:00:10]} 2. c3 {[%emt 0:00:05]} d5 {[%emt 0:00:17]} 3. exd5 {[%emt 0:00:10]} Qxd5 {[%emt 0:00:08]} 4. d4 {[%emt 0:00:13]} g6 {[%emt 0:00:10]} 5. Nf3 {[%emt 0:01:20]} Bg7 {[%emt 0:00:37]} 6. Nbd2 {[%emt 0:01:05]} cxd4 {[%emt 0:02:51]} 7. Bc4 {[%emt 0:00:50]} Qc5 {[%emt 0:00:34]} 8. Qb3 {[%emt 0:04:36]} Nh6 {[%emt 0:01:03]} 9. Ne4 {[%emt 0:00:57]} Qb6 {[%emt 0:00:35]} 10. Nxd4 {[%emt 0:02:19]} O-O {[%emt 0:08:49]} 11. O-O {[%emt 0:01:41]} Nf5 {[%emt 0:08:03]} 12. Nxf5 {[%emt 0:01:30]} Bxf5 {[%emt 0:03:56]} 13. Ng3 {[%emt 0:00:24]} Bd7 {[%emt 0:01:37]} 14. Re1 {[%emt 0:03:03]} Qxb3 {[%emt 0:16:59]} 15. axb3 {[%emt 0:03:35]} Nc6 {[%emt 0:01:28]} 16. b4 {[%emt 0:12:12]} a6 {[%emt 0:07:04]} 17. Ne4 {[%emt 0:11:40]} Ne5 {[%emt 0:10:53]} 18. Bd5 {[%emt 0:06:41]} Nd3 {[%emt 0:01:30]} 19. Rd1 {[%emt 0:00:42]} Nxc1 {[%emt 0:00:39]} 20. Rdxc1 {[%emt 0:00:57]} Rab8 {[%emt 0:02:22]} 21. Nc5 {[%emt 0:01:42]} Bc8 {[%emt 0:01:17]} 22. Rd1 {[%emt 0:03:03]} Be5 {[%emt 0:05:21]} 23. Bf3 {[%emt 0:04:35]} Bd6 {[%emt 0:01:09]} 1/2-1/2

[Event "Reykjavik Open 2025"]
[Site "Reykjavik"]
[Date "2025.04.12"]
[Round "5.44"]
[White "Weidenhoefer, Max"]
[Black "Licznerski, Lukasz"]
[Result "0-1"]
[Annotator "ChessBase"]
[ECO "C28"]
[WhiteElo "2085"]
[BlackElo "2436"]
[PlyCount "78"]
[EventDate "2025.04.09"]
[EventType "swiss"]
[EventCountry "ISL"]
[SourceTitle "playchess.com"]
[Source "ChessBase"]
[SourceQuality "1"]
[TimeControl "40/5400+30:1800+30"]

1. e4 {[%emt 0:00:21]} e5 {[%emt 0:01:23]} 2. Bc4 {[%emt 0:03:42]} Nf6 {[%emt 0:00:42]} 3. d3 {[%emt 0:00:07]} Nc6 {[%emt 0:00:50]} 4. Nc3 {[%emt 0:00:12]} Na5 {[%emt 0:01:01]} 5. Nge2 {[%emt 0:00:10]} Bc5 {[%emt 0:06:22]} 6. O-O {[%emt 0:00:58]} Nxc4 {[%emt 0:01:13]} 7. dxc4 {[%emt 0:00:06]} d6 {[%emt 0:00:24]} 8. Qd3 {[%emt 0:02:13]} Be6 {[%emt 0:03:18]} 9. b3 {[%emt 0:03:50]} O-O {[%emt 0:07:11]} 10. Bg5 {[%emt 0:09:32]} h6 {[%emt 0:01:24]} 11. Be3 {[%emt 0:05:49]} Bxe3 {[%emt 0:01:07]} 12. Qxe3 {[%emt 0:00:09]} Ng4 {[%emt 0:10:51]} 13. Qg3 {[%emt 0:09:53]} c6 {[%emt 0:16:04]} 14. h3 {[%emt 0:05:19]} Nf6 {[%emt 0:01:47]} 15. Rad1 {[%emt 0:00:23]} Qe7 {[%emt 0:00:32]} 16. Rd3 {[%emt 0:14:49]} Rfd8 {[%emt 0:01:28]} 17. Rfd1 {[%emt 0:01:35]} Rd7 {[%emt 0:04:29]} 18. f4 {[%emt 0:05:26]} exf4 {[%emt 0:04:28]} 19. Nxf4 {[%emt 0:00:33]} Rad8 {[%emt 0:00:17]} 20. Qf2 {[%emt 0:01:11]} a6 {[%emt 0:01:16]} 21. Re1 {[%emt 0:06:51]} Re8 {[%emt 0:05:44]} 22. Red1 {[%emt 0:08:35]} Red8 {[%emt 0:02:19]} 23. Re1 {[%emt 0:05:12]} Re8 {[%emt 0:01:37]} 24. Red1 {[%emt 0:03:20]} Kh8 {[%emt 0:04:24]} 25. Qf3 {[%emt 0:02:00]} Rdd8 {[%emt 0:02:02]} 26. R1d2 {[%emt 0:01:55]} Bc8 {[%emt 0:00:29]} 27. Rd4 {[%emt 0:02:19]} Qe5 {[%emt 0:00:47]} 28. Qf2 {[%emt 0:00:55]} c5 {[%emt 0:05:17]} 29. R4d3 {[%emt 0:00:14]} b5 {[%emt 0:00:01]} 30. cxb5 {[%emt 0:03:58]} axb5 {[%emt 0:00:03]} 31. Re2 {[%emt 0:01:29]} b4 {[%emt 0:00:30]} 32. Ncd5 {[%emt 0:01:23]} Nxe4 {[%emt 0:07:07]} 33. Qe1 {[%emt 0:01:42]} Ba6 {[%emt 0:00:52]} 34. Kh1 {[%emt 0:00:31]} Bb5 {[%emt 0:04:53]} 35. Nc7 {[%emt 0:00:44]} Bxd3 {[%emt 0:01:28]} 36. cxd3 {[%emt 0:00:14]} Qxf4 {[%emt 0:00:14]} 37. dxe4 {[%emt 0:00:42]} Re5 {[%emt 0:00:02]} 38. Nd5 {[%emt 0:00:28]} Qg5 {[%emt 0:00:09]} 39. Qf2 {[%emt 0:00:20]} f5 {[%emt 0:00:49]} 0-1